[Event "*** Titled Tuesday Blitz"]
[Site "Chess.com"]
[Date "2020.05.12"]
[Round "6"]
[White "Mr_Sinigami"]
[Black "Koalaskakistis"]
[Result "1-0"]
[WhiteElo "2607"]
[BlackElo "2451"]
[TimeControl "180+1"]
[EndTime "11:05:09 PDT"]
[Termination "Mr_Sinigami won on time"]

1. d4 {[%clk 0:03:00.9]} 1... f5 {[%clk 0:02:59.6]} 2. Nf3 {[%clk 0:03:00.7]}
2... Nf6 {[%clk 0:02:59.6]} 3. g3 {[%clk 0:03:00.8]} 3... e6 {[%clk 0:02:59.5]}
4. Bg2 {[%clk 0:03:01.2]} 4... Be7 {[%clk 0:02:59.9]} 5. O-O {[%clk 0:03:01.6]}
5... O-O {[%clk 0:03:00.4]} 6. b3 {[%clk 0:03:01.3]} 6... Ne4 {[%clk 0:02:58.4]}
7. c4 {[%clk 0:02:59.6]} 7... Bf6 {[%clk 0:02:55.9]} 8. e3 {[%clk 0:02:53.6]}
8... d6 {[%clk 0:02:55.2]} 9. Qc2 {[%clk 0:02:49.8]} 9... Nc6 {[%clk 0:02:53.8]}
10. a3 {[%clk 0:02:40.5]} 10... a5 {[%clk 0:02:52.4]} 11. Bb2 {[%clk 0:02:38.8]}
11... e5 {[%clk 0:02:49.1]} 12. dxe5 {[%clk 0:02:33.6]} 12... dxe5 {[%clk
0:02:48.3]} 13. Rd1 {[%clk 0:02:29.4]} 13... Qe8 {[%clk 0:02:35]} 14. Nfd2
{[%clk 0:02:23.5]} 14... Nxd2 {[%clk 0:02:32.9]} 15. Rxd2 {[%clk 0:02:22.4]}
15... Qh5 {[%clk 0:02:23.2]} 16. Nc3 {[%clk 0:02:20.4]} 16... f4 {[%clk
0:02:18.1]} 17. Nd5 {[%clk 0:02:10.3]} 17... f3 {[%clk 0:02:14]} 18. Bf1 {[%clk
0:02:04.8]} 18... Bf5 {[%clk 0:01:28.9]} 19. Qd1 {[%clk 0:01:55.8]} 19... Rac8
{[%clk 0:00:57.4]} 20. b4 {[%clk 0:01:53]} 20... Ne7 {[%clk 0:00:48.3]} 21. Bxe5
{[%clk 0:01:25]} 21... Bxe5 {[%clk 0:00:40.6]} 22. Nxe7+ {[%clk 0:01:23.6]}
22... Kh8 {[%clk 0:00:39.9]} 23. Nxc8 {[%clk 0:01:19.5]} 23... Bxa1 {[%clk
0:00:37.6]} 24. Qxa1 {[%clk 0:01:18.3]} 24... Rxc8 {[%clk 0:00:37.3]} 25. Qe5
{[%clk 0:01:16.9]} 25... h6 {[%clk 0:00:24.4]} 26. Rd5 {[%clk 0:01:09.4]} 26...
Rf8 {[%clk 0:00:17.3]} 27. e4 {[%clk 0:01:08.8]} 27... axb4 {[%clk 0:00:09.3]}
28. axb4 {[%clk 0:01:07.9]} 1-0

[Event "*** Titled Tuesday Blitz"]
[Site "Chess.com"]
[Date "2020.05.12"]
[Round "6"]
[White "Luibov_AN"]
[Black "pawel83"]
[Result "0-1"]
[WhiteElo "2121"]
[BlackElo "2366"]
[TimeControl "180+1"]
[EndTime "11:05:09 PDT"]
[Termination "pawel83 won by resignation"]

1. d4 {[%clk 0:02:59.7]} 1... Nf6 {[%clk 0:02:54.3]} 2. Nf3 {[%clk 0:02:59.4]}
2... g6 {[%clk 0:02:50.1]} 3. Bg5 {[%clk 0:02:54.1]} 3... Bg7 {[%clk 0:02:49.5]}
4. Nbd2 {[%clk 0:02:54.3]} 4... d6 {[%clk 0:02:48.8]} 5. e4 {[%clk 0:02:54.2]}
5... O-O {[%clk 0:02:37.8]} 6. Bc4 {[%clk 0:02:52.7]} 6... Nc6 {[%clk
0:02:28.4]} 7. c3 {[%clk 0:02:51.9]} 7... h6 {[%clk 0:02:20.9]} 8. Bh4 {[%clk
0:02:50.7]} 8... e5 {[%clk 0:02:19.9]} 9. O-O {[%clk 0:02:47.7]} 9... exd4
{[%clk 0:02:13.2]} 10. Nxd4 {[%clk 0:02:43.6]} 10... Nxd4 {[%clk 0:02:07.1]} 11.
cxd4 {[%clk 0:02:42.8]} 11... g5 {[%clk 0:02:06.3]} 12. Bg3 {[%clk 0:02:42.3]}
12... d5 {[%clk 0:02:06.7]} 13. exd5 {[%clk 0:02:39.5]} 13... Nxd5 {[%clk
0:02:06.4]} 14. Qb3 {[%clk 0:02:35.8]} 14... Nb6 {[%clk 0:01:59.9]} 15. Rad1
{[%clk 0:02:32.4]} 15... c6 {[%clk 0:01:57.9]} 16. Be5 {[%clk 0:02:27.6]} 16...
Nxc4 {[%clk 0:01:53.2]} 17. Nxc4 {[%clk 0:02:26.7]} 17... Be6 {[%clk 0:01:52.2]}
18. Qc3 {[%clk 0:02:11.7]} 18... Bd5 {[%clk 0:01:35.9]} 19. Bxg7 {[%clk
0:01:56.9]} 19... Kxg7 {[%clk 0:01:35.3]} 20. b3 {[%clk 0:01:57.1]} 20... Qf6
{[%clk 0:01:15.9]} 21. Ne5 {[%clk 0:01:54.7]} 21... Rfe8 {[%clk 0:01:11.8]} 22.
Qg3 {[%clk 0:01:51]} 22... Qf4 {[%clk 0:01:09.4]} 23. Qxf4 {[%clk 0:01:39.9]}
23... gxf4 {[%clk 0:01:08.3]} 24. f3 {[%clk 0:01:39.3]} 24... f6 {[%clk
0:01:08.3]} 25. Nd7 {[%clk 0:01:33.6]} 25... Re2 {[%clk 0:01:08.2]} 26. Rf2
{[%clk 0:01:32.5]} 26... Rae8 {[%clk 0:01:06.9]} 27. Nc5 {[%clk 0:01:29.4]}
27... Re1+ {[%clk 0:01:00]} 28. Rf1 {[%clk 0:01:28.2]} 28... Rxd1 {[%clk
0:00:57.4]} 29. Rxd1 {[%clk 0:01:27.8]} 29... Re2 {[%clk 0:00:53.1]} 30. a4
{[%clk 0:01:26.8]} 30... b6 {[%clk 0:00:49.9]} 31. Nd3 {[%clk 0:01:24.9]} 31...
Bxb3 {[%clk 0:00:49.3]} 32. Rc1 {[%clk 0:01:24.6]} 32... Bxa4 {[%clk 0:00:48.1]}
33. Nxf4 {[%clk 0:01:24.4]} 33... Rd2 {[%clk 0:00:45.4]} 34. d5 {[%clk 0:01:23]}
34... c5 {[%clk 0:00:40.9]} 35. h4 {[%clk 0:01:17.2]} 35... Kf7 {[%clk
0:00:40.3]} 36. g4 {[%clk 0:01:13.4]} 36... Rd4 {[%clk 0:00:38.9]} 37. Ne6
{[%clk 0:01:10.5]} 37... Rxd5 {[%clk 0:00:38.5]} 38. Nf4 {[%clk 0:01:05.3]}
38... Rd1+ {[%clk 0:00:38]} 39. Rxd1 {[%clk 0:01:04]} 39... Bxd1 {[%clk
0:00:38.5]} 40. Nd5 {[%clk 0:01:04.2]} 40... Bxf3 {[%clk 0:00:35.9]} 0-1

[Event "*** Titled Tuesday Blitz"]
[Site "Chess.com"]
[Date "2020.05.12"]
[Round "6"]
[White "MateSchmate"]
[Black "DariaVoit"]
[Result "1-0"]
[WhiteElo "2431"]
[BlackElo "2531"]
[TimeControl "180+1"]
[EndTime "11:05:17 PDT"]
[Termination "MateSchmate won by resignation"]

1. e4 {[%clk 0:03:00.9]} 1... e6 {[%clk 0:03:00.1]} 2. d4 {[%clk 0:03:00.7]}
2... d5 {[%clk 0:03:01]} 3. Bd3 {[%clk 0:03:00.5]} 3... dxe4 {[%clk 0:02:54.3]}
4. Bxe4 {[%clk 0:03:01.4]} 4... Nf6 {[%clk 0:02:54.4]} 5. Bf3 {[%clk 0:03:01.8]}
5... c5 {[%clk 0:02:52.8]} 6. Ne2 {[%clk 0:03:00.9]} 6... cxd4 {[%clk
0:02:38.8]} 7. Qxd4 {[%clk 0:03:00.5]} 7... Qxd4 {[%clk 0:02:30.7]} 8. Nxd4
{[%clk 0:03:01.4]} 8... a6 {[%clk 0:02:30.7]} 9. c4 {[%clk 0:02:54.3]} 9... e5
{[%clk 0:02:28]} 10. Nc2 {[%clk 0:02:48.6]} 10... Nc6 {[%clk 0:02:27.8]} 11. Nc3
{[%clk 0:02:46.6]} 11... Bf5 {[%clk 0:02:16.5]} 12. Ne3 {[%clk 0:02:41.3]} 12...
Bd3 {[%clk 0:02:16.6]} 13. Ned5 {[%clk 0:02:30.5]} 13... O-O-O {[%clk
0:02:10.3]} 14. Bg5 {[%clk 0:02:23.3]} 14... h6 {[%clk 0:01:51.3]} 15. Be3
{[%clk 0:02:10.2]} 15... Bxc4 {[%clk 0:01:38.8]} 16. Nb6+ {[%clk 0:02:06.8]}
16... Kb8 {[%clk 0:01:36.2]} 17. Nxc4 {[%clk 0:02:07]} 17... Bb4 {[%clk
0:01:33.5]} 18. O-O {[%clk 0:02:05.2]} 18... Bxc3 {[%clk 0:01:30.7]} 19. bxc3
{[%clk 0:02:04.6]} 19... Rd3 {[%clk 0:01:31.3]} 20. Rac1 {[%clk 0:02:00.5]}
20... e4 {[%clk 0:01:29.5]} 21. Be2 {[%clk 0:01:58.1]} 21... Rd5 {[%clk
0:01:29.6]} 22. Rfd1 {[%clk 0:01:57.3]} 22... Rhd8 {[%clk 0:01:28.7]} 23. Rxd5
{[%clk 0:01:57.2]} 23... Rxd5 {[%clk 0:01:29.6]} 24. Rd1 {[%clk 0:01:57.2]}
24... b5 {[%clk 0:01:26.9]} 25. Nd6 {[%clk 0:01:48.9]} 25... Ne5 {[%clk
0:01:16.3]} 26. Bf4 {[%clk 0:01:37.3]} 26... Rxd1+ {[%clk 0:01:10.1]} 27. Bxd1
{[%clk 0:01:38.2]} 27... Nd3 {[%clk 0:01:10]} 28. Bg3 {[%clk 0:01:35.7]} 28...
Ka7 {[%clk 0:01:09.9]} 29. Bc2 {[%clk 0:01:32.4]} 29... Kb6 {[%clk 0:01:01.1]}
30. f3 {[%clk 0:01:26.4]} 30... Nc1 {[%clk 0:00:55.5]} 31. Nxe4 {[%clk 0:01:19]}
31... Nd5 {[%clk 0:00:42.6]} 32. Bf2+ {[%clk 0:01:16.8]} 32... Kc6 {[%clk
0:00:38.1]} 33. a4 {[%clk 0:01:15.8]} 33... Ne2+ {[%clk 0:00:35.2]} 34. Kf1
{[%clk 0:01:15.9]} 34... Nexc3 {[%clk 0:00:35.6]} 35. axb5+ {[%clk 0:01:14.4]}
35... Nxb5 {[%clk 0:00:27.5]} 36. g3 {[%clk 0:01:06.7]} 36... Nb4 {[%clk
0:00:22.1]} 37. Ba4 {[%clk 0:01:05]} 37... f6 {[%clk 0:00:17.4]} 38. Nc3 {[%clk
0:01:03.5]} 38... Nd5 {[%clk 0:00:16.8]} 39. Nxd5 {[%clk 0:01:02.7]} 39... Kxd5
{[%clk 0:00:17.7]} 40. Bxb5 {[%clk 0:01:03.2]} 40... axb5 {[%clk 0:00:18.5]} 41.
Ke2 {[%clk 0:01:03.7]} 1-0

[Event "*** Titled Tuesday Blitz"]
[Site "Chess.com"]
[Date "2020.05.12"]
[Round "6"]
[White "Megagigahiper3345"]
[Black "SpasKozhuharov"]
[Result "0-1"]
[WhiteElo "2509"]
[BlackElo "2681"]
[TimeControl "180+1"]
[EndTime "11:05:18 PDT"]
[Termination "SpasKozhuharov won by checkmate"]

1. d4 {[%clk 0:03:00.9]} 1... d5 {[%clk 0:02:56.1]} 2. c4 {[%clk 0:03:01]} 2...
dxc4 {[%clk 0:02:52.7]} 3. e4 {[%clk 0:03:00.5]} 3... Nc6 {[%clk 0:02:52.1]} 4.
d5 {[%clk 0:02:56.1]} 4... Ne5 {[%clk 0:02:45.1]} 5. Bf4 {[%clk 0:02:55.8]} 5...
Ng6 {[%clk 0:02:44.7]} 6. Be3 {[%clk 0:02:56.5]} 6... e5 {[%clk 0:02:44.1]} 7.
Bxc4 {[%clk 0:02:57.1]} 7... a6 {[%clk 0:02:44.5]} 8. Ne2 {[%clk 0:02:54.1]}
8... Nf6 {[%clk 0:02:43.4]} 9. Nbc3 {[%clk 0:02:48.3]} 9... Ng4 {[%clk
0:02:43.2]} 10. Bd2 {[%clk 0:02:46.6]} 10... Bc5 {[%clk 0:02:43.5]} 11. Qc2
{[%clk 0:01:41.8]} 11... Bxf2+ {[%clk 0:02:39.6]} 12. Kd1 {[%clk 0:01:41.7]}
12... Bd7 {[%clk 0:02:27.9]} 13. Kc1 {[%clk 0:01:35.7]} 13... Ne3 {[%clk
0:02:25.8]} 14. Qd3 {[%clk 0:01:31.2]} 14... Nxc4 {[%clk 0:02:17.6]} 15. Qxc4
{[%clk 0:01:32.1]} 15... b5 {[%clk 0:02:16.8]} 16. Qd3 {[%clk 0:01:31]} 16... b4
{[%clk 0:02:16.3]} 17. Nd1 {[%clk 0:01:28.4]} 17... Bc5 {[%clk 0:02:11.8]} 18.
Be3 {[%clk 0:01:25.7]} 18... Bd6 {[%clk 0:02:07.8]} 19. Bd2 {[%clk 0:01:04.7]}
19... O-O {[%clk 0:02:05.6]} 20. Ne3 {[%clk 0:01:03.7]} 20... Bb5 {[%clk
0:02:04.1]} 21. Nc4 {[%clk 0:01:02.5]} 21... Rc8 {[%clk 0:01:53.1]} 22. b3
{[%clk 0:00:58.7]} 22... c6 {[%clk 0:01:51.8]} 23. Kb2 {[%clk 0:00:57.1]} 23...
cxd5 {[%clk 0:01:50.6]} 24. Qxd5 {[%clk 0:00:57.5]} 24... Bc5 {[%clk 0:01:40.4]}
25. Rad1 {[%clk 0:00:48.9]} 25... Qc7 {[%clk 0:01:36.9]} 26. Qd3 {[%clk
0:00:13.8]} 26... Rfd8 {[%clk 0:01:34.8]} 27. Qf3 {[%clk 0:00:13]} 27... a5
{[%clk 0:01:32.6]} 28. Bg5 {[%clk 0:00:11]} 28... f6 {[%clk 0:01:29.6]} 29. Bc1
{[%clk 0:00:08]} 29... a4 {[%clk 0:01:28.2]} 30. Qf5 {[%clk 0:00:07]} 30... Qf7
{[%clk 0:01:16.3]} 31. h4 {[%clk 0:00:04.1]} 31... Bxc4 {[%clk 0:01:14.6]} 32.
bxc4 {[%clk 0:00:03.7]} 32... Qxc4 {[%clk 0:01:14]} 33. Ng3 {[%clk 0:00:01.5]}
33... a3+ {[%clk 0:01:10.1]} 34. Kb1 {[%clk 0:00:02.2]} 34... b3 {[%clk
0:01:11]} 35. h5 {[%clk 0:00:01.4]} 35... Qc2+ {[%clk 0:01:10.9]} 36. Ka1 {[%clk
0:00:01.7]} 36... Qxa2# {[%clk 0:01:11.8]} 0-1

[Event "*** Titled Tuesday Blitz"]
[Site "Chess.com"]
[Date "2020.05.12"]
[Round "6"]
[White "murtas73"]
[Black "SmirnovAlexandrA"]
[Result "1-0"]
[WhiteElo "2620"]
[BlackElo "2370"]
[TimeControl "180+1"]
[EndTime "11:05:19 PDT"]
[Termination "murtas73 won by resignation"]

1. d4 {[%clk 0:03:00.6]} 1... Nf6 {[%clk 0:02:55.7]} 2. c4 {[%clk 0:03:00.3]}
2... g6 {[%clk 0:02:55.5]} 3. Nc3 {[%clk 0:02:59.9]} 3... Bg7 {[%clk 0:02:55.6]}
4. e4 {[%clk 0:02:59]} 4... O-O {[%clk 0:02:54]} 5. h3 {[%clk 0:02:58.6]} 5...
d6 {[%clk 0:02:54.1]} 6. Bg5 {[%clk 0:02:57.2]} 6... c5 {[%clk 0:02:52.8]} 7. d5
{[%clk 0:02:56.1]} 7... h6 {[%clk 0:02:49.4]} 8. Be3 {[%clk 0:02:54.5]} 8... a6
{[%clk 0:02:46.4]} 9. a4 {[%clk 0:02:52.9]} 9... e6 {[%clk 0:02:43.5]} 10. Bd3
{[%clk 0:02:52.5]} 10... e5 {[%clk 0:02:39.7]} 11. Nge2 {[%clk 0:02:50.6]} 11...
Kh7 {[%clk 0:02:37.8]} 12. g4 {[%clk 0:02:48.3]} 12... Nbd7 {[%clk 0:02:35]} 13.
Ng3 {[%clk 0:02:43.3]} 13... Rh8 {[%clk 0:02:28]} 14. h4 {[%clk 0:02:42.1]}
14... Kg8 {[%clk 0:02:24.8]} 15. h5 {[%clk 0:02:40.7]} 15... g5 {[%clk
0:02:23.7]} 16. Nf5 {[%clk 0:02:40.3]} 16... Nb8 {[%clk 0:02:21]} 17. a5 {[%clk
0:02:38.9]} 17... Bxf5 {[%clk 0:02:20.2]} 18. gxf5 {[%clk 0:02:30.8]} 18... Kf8
{[%clk 0:02:11.3]} 19. Qd2 {[%clk 0:02:29.7]} 19... Ke7 {[%clk 0:02:08.8]} 20.
Na4 {[%clk 0:02:29.2]} 20... Nbd7 {[%clk 0:02:08.3]} 21. b4 {[%clk 0:02:28.9]}
21... cxb4 {[%clk 0:02:04.2]} 22. Qxb4 {[%clk 0:02:27.8]} 22... Qc7 {[%clk
0:02:00.5]} 23. Ke2 {[%clk 0:02:22.7]} 23... Rhc8 {[%clk 0:01:57.8]} 24. Rhc1
{[%clk 0:02:20.7]} 24... Nc5 {[%clk 0:01:49]} 25. Nb6 {[%clk 0:02:17]} 25...
Nxh5 {[%clk 0:01:17.4]} 26. Nxa8 {[%clk 0:02:06.5]} 26... Rxa8 {[%clk
0:01:18.3]} 27. Kd2 {[%clk 0:01:57]} 27... Nf4 {[%clk 0:01:10.9]} 28. Bc2 {[%clk
0:01:54.9]} 28... Bf8 {[%clk 0:01:02.6]} 29. Rcb1 {[%clk 0:01:52.1]} 29... Rb8
{[%clk 0:00:59.8]} 30. Qb6 {[%clk 0:01:50.4]} 30... Qxb6 {[%clk 0:00:55.7]} 31.
Rxb6 {[%clk 0:01:48.8]} 31... Nd7 {[%clk 0:00:53.7]} 32. Rb2 {[%clk 0:01:47.3]}
32... Kd8 {[%clk 0:00:53.1]} 33. Rab1 {[%clk 0:01:43.2]} 33... Kc8 {[%clk
0:00:51.4]} 34. Ba4 {[%clk 0:01:38]} 34... Nc5 {[%clk 0:00:45]} 35. Bxc5 {[%clk
0:01:36.4]} 35... dxc5 {[%clk 0:00:45.9]} 36. Bc6 {[%clk 0:01:36.5]} 36... Bd6
{[%clk 0:00:26.2]} 37. Bxb7+ {[%clk 0:01:31.1]} 37... Kc7 {[%clk 0:00:25.4]} 38.
Bxa6 {[%clk 0:01:31.1]} 38... Rxb2+ {[%clk 0:00:23.5]} 39. Rxb2 {[%clk
0:01:29.8]} 39... h5 {[%clk 0:00:24.4]} 40. Rb7+ {[%clk 0:01:28.9]} 40... Kd8
{[%clk 0:00:22.9]} 41. Bb5 {[%clk 0:01:27]} 41... h4 {[%clk 0:00:21.2]} 42. Rd7+
{[%clk 0:01:26.1]} 42... Kc8 {[%clk 0:00:20.5]} 43. Rxd6 {[%clk 0:01:24.4]} 1-0

[Event "*** Titled Tuesday Blitz"]
[Site "Chess.com"]
[Date "2020.05.12"]
[Round "6"]
[White "Mimsychess"]
[Black "chessuriel"]
[Result "1-0"]
[WhiteElo "2336"]
[BlackElo "2157"]
[TimeControl "180+1"]
[EndTime "11:05:19 PDT"]
[Termination "Mimsychess won by resignation"]

1. d4 {[%clk 0:03:00.9]} 1... Nf6 {[%clk 0:02:59.4]} 2. c4 {[%clk 0:02:59.3]}
2... e6 {[%clk 0:02:59.6]} 3. Nf3 {[%clk 0:02:55.4]} 3... b6 {[%clk 0:02:58.4]}
4. g3 {[%clk 0:02:53.6]} 4... Ba6 {[%clk 0:02:57.4]} 5. b3 {[%clk 0:02:52.9]}
5... Bb4+ {[%clk 0:02:57.3]} 6. Bd2 {[%clk 0:02:52.5]} 6... Be7 {[%clk
0:02:57.4]} 7. Bg2 {[%clk 0:02:52.2]} 7... c6 {[%clk 0:02:57.7]} 8. O-O {[%clk
0:02:44.7]} 8... d5 {[%clk 0:02:57.5]} 9. Qc2 {[%clk 0:02:41.1]} 9... O-O {[%clk
0:02:55.7]} 10. Ne5 {[%clk 0:02:40.8]} 10... Nfd7 {[%clk 0:02:54.4]} 11. Nxd7
{[%clk 0:02:35.2]} 11... Nxd7 {[%clk 0:02:54]} 12. Rd1 {[%clk 0:02:32.9]} 12...
Rc8 {[%clk 0:02:52]} 13. e4 {[%clk 0:02:29.5]} 13... dxe4 {[%clk 0:02:45]} 14.
Bxe4 {[%clk 0:02:26.3]} 14... Nf6 {[%clk 0:02:44.6]} 15. Bg2 {[%clk 0:02:24.9]}
15... c5 {[%clk 0:02:33.8]} 16. Be3 {[%clk 0:02:13.4]} 16... cxd4 {[%clk
0:02:29.8]} 17. Bxd4 {[%clk 0:02:11.4]} 17... Qc7 {[%clk 0:02:28.9]} 18. Nc3
{[%clk 0:02:07.5]} 18... Bb7 {[%clk 0:02:18.5]} 19. Qe2 {[%clk 0:01:48.6]} 19...
Bxg2 {[%clk 0:02:15.9]} 20. Kxg2 {[%clk 0:01:49.5]} 20... Qb7+ {[%clk
0:02:12.9]} 21. Qf3 {[%clk 0:01:49.2]} 21... Qxf3+ {[%clk 0:02:12.4]} 22. Kxf3
{[%clk 0:01:50.1]} 22... Rfd8 {[%clk 0:02:12.4]} 23. Nb5 {[%clk 0:01:43.1]}
23... Ra8 {[%clk 0:01:53.9]} 24. a4 {[%clk 0:01:35.3]} 24... Kf8 {[%clk
0:01:48.3]} 25. a5 {[%clk 0:01:32.3]} 25... bxa5 {[%clk 0:01:43.7]} 26. Bxa7
{[%clk 0:01:25.3]} 26... Rxd1 {[%clk 0:01:34.5]} 27. Rxd1 {[%clk 0:01:26.2]}
27... Bb4 {[%clk 0:01:32.7]} 28. Bb6 {[%clk 0:01:15.8]} 28... a4 {[%clk
0:01:25.8]} 29. bxa4 {[%clk 0:01:12.6]} 29... Rxa4 {[%clk 0:01:25]} 30. Rd8+
{[%clk 0:01:08.9]} 30... Ke7 {[%clk 0:01:23.4]} 31. Rb8 {[%clk 0:01:07.5]} 31...
Nd7 {[%clk 0:01:19.1]} 32. Bd8+ {[%clk 0:01:02.2]} 32... Ke8 {[%clk 0:01:18.4]}
33. Nc7+ {[%clk 0:00:47.7]} 33... Kf8 {[%clk 0:01:14.3]} 34. Rc8 {[%clk
0:00:48.6]} 34... Nb6 {[%clk 0:01:09.1]} 35. Nxe6+ {[%clk 0:00:39.3]} 35... fxe6
{[%clk 0:01:06.3]} 36. Bxb6+ {[%clk 0:00:40.2]} 36... Kf7 {[%clk 0:01:05]} 37.
c5 {[%clk 0:00:40]} 37... Ra3+ {[%clk 0:01:04]} 38. Kg2 {[%clk 0:00:39.8]} 38...
Rc3 {[%clk 0:01:01.3]} 39. c6 {[%clk 0:00:39.7]} 39... Bd6 {[%clk 0:00:59.1]}
40. Rd8 {[%clk 0:00:37.3]} 40... Ke7 {[%clk 0:00:56]} 41. Rd7+ {[%clk
0:00:36.8]} 1-0

[Event "*** Titled Tuesday Blitz"]
[Site "Chess.com"]
[Date "2020.05.12"]
[Round "6"]
[White "Fusikk"]
[Black "SHIVACalypso"]
[Result "1-0"]
[WhiteElo "2505"]
[BlackElo "2309"]
[TimeControl "180+1"]
[EndTime "11:05:20 PDT"]
[Termination "Fusikk won by checkmate"]

1. d4 {[%clk 0:03:00.9]} 1... e6 {[%clk 0:03:00.1]} 2. c4 {[%clk 0:02:58.9]}
2... Nf6 {[%clk 0:02:59.4]} 3. Nf3 {[%clk 0:02:58.8]} 3... d5 {[%clk 0:02:57.8]}
4. Nc3 {[%clk 0:02:58.9]} 4... Be7 {[%clk 0:02:57]} 5. Bg5 {[%clk 0:02:59.2]}
5... O-O {[%clk 0:02:55.7]} 6. e3 {[%clk 0:02:59.6]} 6... h6 {[%clk 0:02:47.8]}
7. Bh4 {[%clk 0:02:55.4]} 7... b6 {[%clk 0:02:43.9]} 8. Bd3 {[%clk 0:02:55]}
8... Bb7 {[%clk 0:02:42.2]} 9. O-O {[%clk 0:02:55.2]} 9... Nbd7 {[%clk
0:02:41.4]} 10. Bg3 {[%clk 0:02:55.6]} 10... c5 {[%clk 0:02:38.5]} 11. cxd5
{[%clk 0:02:54.2]} 11... Nxd5 {[%clk 0:02:35.9]} 12. Nxd5 {[%clk 0:02:53.1]}
12... Bxd5 {[%clk 0:02:36.8]} 13. Qe2 {[%clk 0:02:43.5]} 13... Rc8 {[%clk
0:02:32.2]} 14. Ba6 {[%clk 0:02:42.7]} 14... Ra8 {[%clk 0:02:23.7]} 15. e4
{[%clk 0:02:31.3]} 15... Bc6 {[%clk 0:02:19.5]} 16. Rfd1 {[%clk 0:02:31.2]}
16... f5 {[%clk 0:01:32.2]} 17. d5 {[%clk 0:02:21.7]} 17... exd5 {[%clk
0:01:23.4]} 18. exd5 {[%clk 0:02:21]} 18... Ba4 {[%clk 0:01:19.3]} 19. b3 {[%clk
0:02:19.7]} 19... f4 {[%clk 0:01:18.2]} 20. bxa4 {[%clk 0:01:45.8]} 20... fxg3
{[%clk 0:01:15.8]} 21. hxg3 {[%clk 0:01:46.7]} 21... Bf6 {[%clk 0:01:08.9]} 22.
Rac1 {[%clk 0:01:46.5]} 22... Re8 {[%clk 0:01:07]} 23. Qc2 {[%clk 0:01:41.3]}
23... Ne5 {[%clk 0:01:03.8]} 24. d6 {[%clk 0:01:40.4]} 24... Nxf3+ {[%clk
0:01:01.4]} 25. gxf3 {[%clk 0:01:41.3]} 25... Bd4 {[%clk 0:00:49.4]} 26. Qc4+
{[%clk 0:01:28]} 26... Kh8 {[%clk 0:00:46.6]} 27. Qd5 {[%clk 0:01:23.9]} 27...
Qf6 {[%clk 0:00:42.2]} 28. Bb5 {[%clk 0:01:18.7]} 28... Rf8 {[%clk 0:00:38.9]}
29. Kg2 {[%clk 0:01:17.8]} 29... Rad8 {[%clk 0:00:37.9]} 30. d7 {[%clk
0:01:17.9]} 30... a6 {[%clk 0:00:30.4]} 31. Bc6 {[%clk 0:01:17.6]} 31... Rf7
{[%clk 0:00:19.1]} 32. Re1 {[%clk 0:01:16.8]} 32... Re7 {[%clk 0:00:19.5]} 33.
Rxe7 {[%clk 0:01:06.1]} 33... Qxe7 {[%clk 0:00:20.4]} 34. Kf1 {[%clk 0:01:05.9]}
34... Qf6 {[%clk 0:00:16]} 35. Re1 {[%clk 0:01:04.5]} 35... Kh7 {[%clk
0:00:14.9]} 36. Re8 {[%clk 0:01:03.7]} 36... g6 {[%clk 0:00:15.1]} 37. Qg8#
{[%clk 0:01:02.9]} 1-0

[Event "*** Titled Tuesday Blitz"]
[Site "Chess.com"]
[Date "2020.05.12"]
[Round "6"]
[White "zubridis"]
[Black "Mikhail_Biryukov"]
[Result "0-1"]
[WhiteElo "2470"]
[BlackElo "2655"]
[TimeControl "180+1"]
[EndTime "11:05:21 PDT"]
[Termination "Mikhail_Biryukov won on time"]

1. d4 {[%clk 0:03:00.9]} 1... Nf6 {[%clk 0:02:59.3]} 2. Nf3 {[%clk 0:02:59.4]}
2... e6 {[%clk 0:02:59.7]} 3. c4 {[%clk 0:02:59.3]} 3... d5 {[%clk 0:02:59]} 4.
Nc3 {[%clk 0:02:58.3]} 4... Bb4 {[%clk 0:02:58.8]} 5. cxd5 {[%clk 0:02:54.2]}
5... exd5 {[%clk 0:02:56.6]} 6. Bf4 {[%clk 0:02:54.5]} 6... O-O {[%clk
0:02:54.6]} 7. e3 {[%clk 0:02:53.8]} 7... c5 {[%clk 0:02:54.7]} 8. a3 {[%clk
0:02:41.9]} 8... Ba5 {[%clk 0:02:54.1]} 9. dxc5 {[%clk 0:02:35.2]} 9... Bxc3+
{[%clk 0:02:53.5]} 10. bxc3 {[%clk 0:02:36.1]} 10... Nc6 {[%clk 0:02:52.3]} 11.
Bd3 {[%clk 0:02:04.2]} 11... Qa5 {[%clk 0:02:48.2]} 12. O-O {[%clk 0:02:02.2]}
12... Qxc5 {[%clk 0:02:48.1]} 13. Qc2 {[%clk 0:01:40.6]} 13... Be6 {[%clk
0:02:37.8]} 14. Nd4 {[%clk 0:01:27.5]} 14... Rac8 {[%clk 0:02:31.6]} 15. Rfc1
{[%clk 0:01:13.6]} 15... h6 {[%clk 0:02:17.4]} 16. Rab1 {[%clk 0:01:07.8]} 16...
b6 {[%clk 0:02:14.7]} 17. Qa4 {[%clk 0:00:55.3]} 17... Na5 {[%clk 0:02:11.1]}
18. Qb4 {[%clk 0:00:51.8]} 18... Rfd8 {[%clk 0:02:01.8]} 19. Ba6 {[%clk
0:00:49.4]} 19... Ra8 {[%clk 0:01:54.3]} 20. Qxc5 {[%clk 0:00:48.3]} 20... bxc5
{[%clk 0:01:54]} 21. Nb5 {[%clk 0:00:46.9]} 21... Bf5 {[%clk 0:01:50.4]} 22. Rb2
{[%clk 0:00:32.7]} 22... Nc4 {[%clk 0:01:50.2]} 23. Ra2 {[%clk 0:00:32.3]} 23...
Bc8 {[%clk 0:01:49.2]} 24. Bxc8 {[%clk 0:00:23.4]} 24... Rdxc8 {[%clk
0:01:45.1]} 25. a4 {[%clk 0:00:19.5]} 25... a6 {[%clk 0:01:44.9]} 26. Na3 {[%clk
0:00:19.7]} 26... Na5 {[%clk 0:01:39.4]} 27. c4 {[%clk 0:00:16.2]} 27... d4
{[%clk 0:01:33.7]} 28. h3 {[%clk 0:00:16.1]} 28... Ra7 {[%clk 0:01:31.5]} 29.
Rb1 {[%clk 0:00:15.8]} 29... Rd8 {[%clk 0:01:26.2]} 30. Kf1 {[%clk 0:00:15.6]}
30... Ne4 {[%clk 0:01:24.8]} 31. Rb6 {[%clk 0:00:08.1]} 31... Nc3 {[%clk
0:01:23.3]} 32. Rc2 {[%clk 0:00:07]} 32... Nxa4 {[%clk 0:01:23.1]} 33. Rb1
{[%clk 0:00:05.7]} 33... Nc3 {[%clk 0:01:20.4]} 34. Rbc1 {[%clk 0:00:05.5]}
34... Rb7 {[%clk 0:01:19]} 35. exd4 {[%clk 0:00:04.1]} 35... cxd4 {[%clk
0:01:18.7]} 36. c5 {[%clk 0:00:04.5]} 36... Rb3 {[%clk 0:01:17.2]} 0-1